[Event "Titled Tuesday Blitz July 26 Late 2022"]
[White "Holt, Conrad"]
[Black "Salem, A.R. Saleh"]
[WhiteFideId "2034387"]
[BlackFideId "9301348"]
[WhiteElo "2586"]
[BlackElo "2679"]
[Result "0-1"]
[Round "09"]
[TimeControl "180+1"]
[Date "2022.07.26"]
[WhiteClock "0:00:02"]
[BlackClock "0:00:17"]

1. d4 {[%clk 0:02:56]}  d5 {[%clk 0:03:00]} 2. c4 {[%clk 0:02:56]}  e6 {[%clk 0:03:00]} 3. Nc3 {[%clk 0:02:56]}  Nf6 {[%clk 0:03:01]} 4. cxd5 {[%clk 0:02:56]}  exd5 {[%clk 0:03:02]} 5. Bg5 {[%clk 0:02:56]}  c6 {[%clk 0:03:03]} 6. e3 {[%clk 0:02:56]}  h6 {[%clk 0:03:03]} 7. Bh4 {[%clk 0:02:56]}  Be7 {[%clk 0:03:04]} 8. Bd3 {[%clk 0:02:52]}  O-O {[%clk 0:03:04]} 9. Nf3 {[%clk 0:02:47]}  Re8 {[%clk 0:03:05]} 10. O-O {[%clk 0:02:46]}  Ne4 {[%clk 0:03:03]} 11. Bxe7 {[%clk 0:02:45]}  Qxe7 {[%clk 0:03:04]} 12. Ne5 {[%clk 0:02:44]}  Nd7 {[%clk 0:03:01]} 13. Nxd7 {[%clk 0:02:20]}  Bxd7 {[%clk 0:03:02]} 14. Qc2 {[%clk 0:02:18]}  h5 {[%clk 0:02:58]} 15. b4 {[%clk 0:02:14]}  h4 {[%clk 0:02:57]} 16. Bxe4 {[%clk 0:02:00]}  dxe4 {[%clk 0:02:57]} 17. h3 {[%clk 0:01:51]}  Rad8 {[%clk 0:02:51]} 18. Rab1 {[%clk 0:01:47]}  Bf5 {[%clk 0:02:43]} 19. Ne2 {[%clk 0:01:43]}  Rd6 {[%clk 0:02:37]} 20. b5 {[%clk 0:01:40]}  Rc8 {[%clk 0:02:34]} 21. Qc5 {[%clk 0:01:35]}  Qd7 {[%clk 0:02:28]} 22. Rfc1 {[%clk 0:01:28]}  b6 {[%clk 0:02:23]} 23. Qe5 {[%clk 0:01:22]}  Rd5 {[%clk 0:02:09]} 24. bxc6 {[%clk 0:01:19]}  Rxc6 {[%clk 0:02:08]} 25. Qb8+ {[%clk 0:01:15]}  Kh7 {[%clk 0:02:09]} 26. Rxc6 {[%clk 0:01:06]}  Qxc6 {[%clk 0:02:10]} 27. Rc1 {[%clk 0:01:05]}  Qd7 {[%clk 0:01:44]} 28. Qf4 {[%clk 0:00:55]}  Qd8 {[%clk 0:01:42]} 29. Nc3 {[%clk 0:00:52]}  g5 {[%clk 0:01:37]} 30. Qh2 {[%clk 0:00:51]}  Ra5 {[%clk 0:01:33]} 31. Rc2 {[%clk 0:00:43]}  b5 {[%clk 0:01:04]} 32. Ne2 {[%clk 0:00:34]}  b4 {[%clk 0:01:04]} 33. Nc1 {[%clk 0:00:32]}  Be6 {[%clk 0:00:51]} 34. g3 {[%clk 0:00:20]}  Bxa2 {[%clk 0:00:33]} 35. Rxa2 {[%clk 0:00:15]}  b3 {[%clk 0:00:29]} 36. Rxa5 {[%clk 0:00:03]}  b2 {[%clk 0:00:28]} 37. Rc5 {[%clk 0:00:03]}  b1=Q {[%clk 0:00:28]} 38. gxh4 {[%clk 0:00:03]}  Qb4 {[%clk 0:00:22]} 39. Qe5 {[%clk 0:00:03]}  Qe1+ {[%clk 0:00:20]} 40. Kg2 {[%clk 0:00:03]}  Qd1 {[%clk 0:00:20]} 41. Qf5+ {[%clk 0:00:03]}  Kg7 {[%clk 0:00:19]} 42. Qxe4 {[%clk 0:00:03]}  gxh4 {[%clk 0:00:15]} 43. Qe5+ {[%clk 0:00:03]}  Qf6 {[%clk 0:00:14]} 44. Qe4 {[%clk 0:00:03]}  Qg6+ {[%clk 0:00:13]} 45. Qxg6+ {[%clk 0:00:04]}  fxg6 {[%clk 0:00:14]} 46. d5 {[%clk 0:00:03]}  Kh6 {[%clk 0:00:14]} 47. e4 {[%clk 0:00:03]}  Qd4 {[%clk 0:00:13]} 48. Ra5 {[%clk 0:00:02]}  Qxe4+ {[%clk 0:00:13]} 49. Kf1 {[%clk 0:00:01]}  Qc4+ {[%clk 0:00:14]} 50. Ne2 {[%clk 0:00:02]}  Qd3 {[%clk 0:00:14]} 51. Rxa7 {[%clk 0:00:01]}  Qd1+ {[%clk 0:00:14]} 52. Kg2 {[%clk 0:00:02]}  Qxe2 {[%clk 0:00:15]} 53. Ra4 {[%clk 0:00:02]}  Qd1 {[%clk 0:00:14]} 54. Rg4 {[%clk 0:00:02]}  Kg7 {[%clk 0:00:15]} 55. Rxh4 {[%clk 0:00:02]}  Qxd5+ {[%clk 0:00:15]} 56. Kh2 {[%clk 0:00:02]}  Qc5 {[%clk 0:00:15]} 57. Kg2 {[%clk 0:00:02]}  Qc6+ {[%clk 0:00:16]} 58. Kh2 {[%clk 0:00:02]}  Qf3 {[%clk 0:00:16]} 59. Rg4 {[%clk 0:00:01]}  Qxf2+ {[%clk 0:00:16]} 60. Rg2 {[%clk 0:00:02]}  Qf4+ {[%clk 0:00:16]} 61. Kh1 {[%clk 0:00:02]}  Kh6 {[%clk 0:00:16]} 62. Rg4 {[%clk 0:00:02]}  Qf2 {[%clk 0:00:16]} 63. Rg2 {[%clk 0:00:02]}  Qe1+ {[%clk 0:00:15]} 64. Kh2 {[%clk 0:00:03]}  Kh5 {[%clk 0:00:16]} 65. Rg3 {[%clk 0:00:03]}  Qf2+ {[%clk 0:00:16]} 66. Rg2 {[%clk 0:00:04]}  Qf4+ {[%clk 0:00:16]} 67. Kh1 {[%clk 0:00:04]}  g5 {[%clk 0:00:17]} 68. Kg1 {[%clk 0:00:04]}  Qe5 {[%clk 0:00:17]} 69. Kh1 {[%clk 0:00:04]}  Qe3 {[%clk 0:00:17]} 70. Kh2 {[%clk 0:00:04]}  Qf3 {[%clk 0:00:17]} 71. Rg4 {[%clk 0:00:04]}  Qd5 {[%clk 0:00:16]} 72. Kg3 {[%clk 0:00:04]}  Qd2 {[%clk 0:00:16]} 73. Kf3 {[%clk 0:00:03]}  Qh2 {[%clk 0:00:16]} 74. Rg3 {[%clk 0:00:03]}  Kh6 {[%clk 0:00:15]} 75. Kg4 {[%clk 0:00:03]}  Qf2 {[%clk 0:00:15]} 76. Rf3 {[%clk 0:00:02]}  Qg2+ {[%clk 0:00:16]} 77. Rg3 {[%clk 0:00:02]}  Qe4# {[%clk 0:00:17]} 0-1


[Site "https://www.chess.com"]

[Event "Titled Tuesday Blitz July 26 Late 2022"]
[White "Isajevsky, Anton"]
[Black "Rastbod, Ali"]
[WhiteFideId "4142500"]
[BlackFideId "12567477"]
[WhiteElo "2510"]
[BlackElo "2135"]
[Result "0-1"]
[Round "09"]
[TimeControl "180+1"]
[Date "2022.07.26"]
[WhiteClock "0:00:01"]
[BlackClock "0:00:55"]

1. c4 {[%clk 0:02:54]}  e5 {[%clk 0:02:57]} 2. g3 {[%clk 0:02:53]}  Nf6 {[%clk 0:02:54]} 3. Bg2 {[%clk 0:02:53]}  d5 {[%clk 0:02:54]} 4. cxd5 {[%clk 0:02:53]}  Nxd5 {[%clk 0:02:55]} 5. Nf3 {[%clk 0:02:54]}  Nc6 {[%clk 0:02:55]} 6. O-O {[%clk 0:02:53]}  Bc5 {[%clk 0:02:55]} 7. Nxe5 {[%clk 0:02:52]}  Nxe5 {[%clk 0:02:51]} 8. d4 {[%clk 0:02:51]}  Nb4 {[%clk 0:01:52]} 9. a3 {[%clk 0:02:49]}  Qxd4 {[%clk 0:01:49]} 10. Qxd4 {[%clk 0:02:48]}  Bxd4 {[%clk 0:01:50]} 11. axb4 {[%clk 0:02:48]}  O-O {[%clk 0:01:44]} 12. Rd1 {[%clk 0:02:11]}  Bb6 {[%clk 0:01:41]} 13. Nc3 {[%clk 0:01:54]}  Ng4 {[%clk 0:01:39]} 14. e3 {[%clk 0:01:51]}  c6 {[%clk 0:01:38]} 15. b5 {[%clk 0:01:44]}  Ne5 {[%clk 0:01:37]} 16. bxc6 {[%clk 0:01:39]}  bxc6 {[%clk 0:01:38]} 17. Na4 {[%clk 0:00:43]}  Bg4 {[%clk 0:01:35]} 18. Rf1 {[%clk 0:00:25]}  Be2 {[%clk 0:01:33]} 19. Re1 {[%clk 0:00:24]}  Nf3+ {[%clk 0:01:33]} 20. Bxf3 {[%clk 0:00:24]}  Bxf3 {[%clk 0:01:33]} 21. Nxb6 {[%clk 0:00:22]}  axb6 {[%clk 0:01:33]} 22. Rxa8 {[%clk 0:00:23]}  Rxa8 {[%clk 0:01:34]} 23. Bd2 {[%clk 0:00:23]}  c5 {[%clk 0:01:34]} 24. e4 {[%clk 0:00:17]}  Ra2 {[%clk 0:01:31]} 25. Bc3 {[%clk 0:00:13]}  b5 {[%clk 0:01:31]} 26. h3 {[%clk 0:00:10]}  b4 {[%clk 0:01:30]} 27. Be5 {[%clk 0:00:10]}  f6 {[%clk 0:01:30]} 28. Bd6 {[%clk 0:00:10]}  Rxb2 {[%clk 0:01:30]} 29. Bxc5 {[%clk 0:00:10]}  b3 {[%clk 0:01:29]} 30. g4 {[%clk 0:00:11]}  Rc2 {[%clk 0:01:27]} 31. Ba3 {[%clk 0:00:09]}  Ra2 {[%clk 0:01:21]} 32. Bb4 {[%clk 0:00:09]}  Bxe4 {[%clk 0:01:08]} 33. Bc3 {[%clk 0:00:05]}  Ra4 {[%clk 0:00:56]} 34. Kh2 {[%clk 0:00:02]}  Kf7 {[%clk 0:00:57]} 35. Kg3 {[%clk 0:00:02]}  Rc4 {[%clk 0:00:57]} 36. Re3 {[%clk 0:00:02]}  Bc2 {[%clk 0:00:55]} 37. Bb2 {[%clk 0:00:01]}  Ra4 {[%clk 0:00:55]} 0-1


[Site "https://www.chess.com"]

[Event "Titled Tuesday Blitz July 26 Late 2022"]
[White "Jarocka, Liwia"]
[Black "Capp, Stephen"]
[WhiteFideId "21807558"]
[BlackFideId "2027089"]
[WhiteElo "1840"]
[BlackElo "2220"]
[Result "1-0"]
[Round "09"]
[TimeControl "180+1"]
[Date "2022.07.27"]
[WhiteClock "0:00:46"]
[BlackClock "0:00:01"]

1. e4 {[%clk 0:03:00]}  e5 {[%clk 0:02:59]} 2. Nf3 {[%clk 0:02:59]}  d5 {[%clk 0:02:58]} 3. exd5 {[%clk 0:02:59]}  Bd6 {[%clk 0:02:58]} 4. d4 {[%clk 0:02:57]}  e4 {[%clk 0:02:57]} 5. Ne5 {[%clk 0:02:56]}  Nf6 {[%clk 0:02:57]} 6. Bc4 {[%clk 0:02:53]}  h6 {[%clk 0:02:53]} 7. O-O {[%clk 0:02:52]}  O-O {[%clk 0:02:53]} 8. Nc3 {[%clk 0:02:49]}  Nbd7 {[%clk 0:02:25]} 9. Nxd7 {[%clk 0:02:46]}  Bxd7 {[%clk 0:02:25]} 10. Re1 {[%clk 0:02:44]}  Bf5 {[%clk 0:02:21]} 11. h3 {[%clk 0:02:39]}  a6 {[%clk 0:02:18]} 12. Bb3 {[%clk 0:02:37]}  b5 {[%clk 0:02:18]} 13. Ne2 {[%clk 0:02:37]}  Bg6 {[%clk 0:02:14]} 14. Bf4 {[%clk 0:02:36]}  Re8 {[%clk 0:02:11]} 15. Bxd6 {[%clk 0:02:35]}  Qxd6 {[%clk 0:02:11]} 16. Qd2 {[%clk 0:02:29]}  Nxd5 {[%clk 0:02:09]} 17. Bxd5 {[%clk 0:02:26]}  Qxd5 {[%clk 0:02:09]} 18. Nf4 {[%clk 0:02:26]}  Qd6 {[%clk 0:02:07]} 19. Nxg6 {[%clk 0:02:25]}  Qxg6 {[%clk 0:02:04]} 20. Re3 {[%clk 0:02:25]}  Qf6 {[%clk 0:02:02]} 21. Rae1 {[%clk 0:02:22]}  Qf5 {[%clk 0:01:57]} 22. c3 {[%clk 0:02:21]}  Rad8 {[%clk 0:01:55]} 23. Qc2 {[%clk 0:02:19]}  c5 {[%clk 0:01:47]} 24. dxc5 {[%clk 0:02:18]}  Qxc5 {[%clk 0:01:44]} 25. Rxe4 {[%clk 0:02:17]}  Rxe4 {[%clk 0:01:43]} 26. Rxe4 {[%clk 0:02:15]}  g6 {[%clk 0:01:39]} 27. Re1 {[%clk 0:02:13]}  Kg7 {[%clk 0:01:37]} 28. Rd1 {[%clk 0:02:10]}  Re8 {[%clk 0:01:29]} 29. Qd2 {[%clk 0:02:04]}  Qe5 {[%clk 0:01:21]} 30. a3 {[%clk 0:01:58]}  Kh7 {[%clk 0:01:17]} 31. Qd7 {[%clk 0:01:46]}  Re7 {[%clk 0:01:10]} 32. Qd6 {[%clk 0:01:46]}  Qe2 {[%clk 0:01:02]} 33. Qd2 {[%clk 0:01:46]}  Qe5 {[%clk 0:00:59]} 34. g3 {[%clk 0:01:45]}  Qf5 {[%clk 0:00:55]} 35. h4 {[%clk 0:01:42]}  Qf3 {[%clk 0:00:51]} 36. Re1 {[%clk 0:01:36]}  Rc7 {[%clk 0:00:39]} 37. Qe2 {[%clk 0:01:35]}  Qf5 {[%clk 0:00:32]} 38. Qe5 {[%clk 0:01:34]}  Qc8 {[%clk 0:00:29]} 39. Qf6 {[%clk 0:01:30]}  Qf8 {[%clk 0:00:22]} 40. Qxa6 {[%clk 0:01:22]}  Rc5 {[%clk 0:00:18]} 41. Qb6 {[%clk 0:01:12]}  Rf5 {[%clk 0:00:17]} 42. Qe3 {[%clk 0:01:12]}  Qd6 {[%clk 0:00:16]} 43. b3 {[%clk 0:01:10]}  Qxa3 {[%clk 0:00:15]} 44. c4 {[%clk 0:01:08]}  bxc4 {[%clk 0:00:14]} 45. bxc4 {[%clk 0:01:09]}  Qb4 {[%clk 0:00:11]} 46. Rc1 {[%clk 0:01:05]}  Qd6 {[%clk 0:00:09]} 47. c5 {[%clk 0:01:03]}  Qc6 {[%clk 0:00:09]} 48. Qd4 {[%clk 0:00:56]}  Rf3 {[%clk 0:00:07]} 49. Qd6 {[%clk 0:00:53]}  Qxd6 {[%clk 0:00:05]} 50. cxd6 {[%clk 0:00:53]}  Rd3 {[%clk 0:00:06]} 51. Rc6 {[%clk 0:00:52]}  Kg7 {[%clk 0:00:07]} 52. Kf1 {[%clk 0:00:52]}  Kf8 {[%clk 0:00:07]} 53. Ke2 {[%clk 0:00:52]}  Rd5 {[%clk 0:00:07]} 54. Ke3 {[%clk 0:00:52]}  Ke8 {[%clk 0:00:07]} 55. Ke4 {[%clk 0:00:52]}  Rd2 {[%clk 0:00:07]} 56. f4 {[%clk 0:00:51]}  Kd7 {[%clk 0:00:06]} 57. Rc7+ {[%clk 0:00:48]}  Kxd6 {[%clk 0:00:06]} 58. Rxf7 {[%clk 0:00:47]}  Rg2 {[%clk 0:00:05]} 59. Kf3 {[%clk 0:00:46]}  Rg1 {[%clk 0:00:04]} 60. Rf6+ {[%clk 0:00:46]}  Ke7 {[%clk 0:00:04]} 61. Rxg6 {[%clk 0:00:47]}  h5 {[%clk 0:00:03]} 62. Rg5 {[%clk 0:00:47]}  Rf1+ {[%clk 0:00:01]} 63. Kg2 {[%clk 0:00:46]} 1-0


[Site "https://www.chess.com"]

[Event "Titled Tuesday Blitz July 26 Late 2022"]
[White "Kamsky, Gata"]
[Black "Fedoseev, Vladimir"]
[WhiteFideId "2000024"]
[BlackFideId "24130737"]
[WhiteElo "2645"]
[BlackElo "2726"]
[Result "1/2-1/2"]
[Round "09"]
[TimeControl "180+1"]
[Date "2022.07.26"]
[WhiteClock "0:00:12"]
[BlackClock "0:00:05"]

1. e4 {[%clk 0:03:00]}  c5 {[%clk 0:02:59]} 2. Nf3 {[%clk 0:02:58]}  d6 {[%clk 0:03:00]} 3. Nc3 {[%clk 0:02:57]}  e5 {[%clk 0:02:59]} 4. Bc4 {[%clk 0:02:56]}  Be7 {[%clk 0:02:58]} 5. d3 {[%clk 0:02:56]}  Nc6 {[%clk 0:02:55]} 6. Nd2 {[%clk 0:02:55]}  Nf6 {[%clk 0:02:50]} 7. Nf1 {[%clk 0:02:55]}  Bg4 {[%clk 0:02:50]} 8. f3 {[%clk 0:02:54]}  Be6 {[%clk 0:02:48]} 9. Ne3 {[%clk 0:02:54]}  O-O {[%clk 0:02:45]} 10. O-O {[%clk 0:02:52]}  a6 {[%clk 0:02:43]} 11. a4 {[%clk 0:02:50]}  Nb4 {[%clk 0:02:43]} 12. Re1 {[%clk 0:02:09]}  Qd7 {[%clk 0:02:43]} 13. a5 {[%clk 0:02:07]}  Bd8 {[%clk 0:02:42]} 14. Bd2 {[%clk 0:02:06]}  Re8 {[%clk 0:02:37]} 15. Ncd5 {[%clk 0:02:04]}  Nbxd5 {[%clk 0:02:28]} 16. exd5 {[%clk 0:02:00]}  Bf5 {[%clk 0:02:27]} 17. b4 {[%clk 0:01:57]}  cxb4 {[%clk 0:02:16]} 18. Bxb4 {[%clk 0:01:55]}  b5 {[%clk 0:02:03]} 19. axb6 {[%clk 0:01:51]}  Bxb6 {[%clk 0:02:02]} 20. Kh1 {[%clk 0:01:51]}  Bg6 {[%clk 0:01:56]} 21. Qd2 {[%clk 0:01:44]}  Reb8 {[%clk 0:01:49]} 22. Bb3 {[%clk 0:01:23]}  Qc7 {[%clk 0:01:45]} 23. Nc4 {[%clk 0:01:21]}  Bc5 {[%clk 0:01:43]} 24. Bxc5 {[%clk 0:01:21]}  Qxc5 {[%clk 0:01:41]} 25. Ra5 {[%clk 0:01:18]}  Qc7 {[%clk 0:01:36]} 26. Rea1 {[%clk 0:01:17]}  Nd7 {[%clk 0:01:19]} 27. Rxa6 {[%clk 0:01:12]}  Rxa6 {[%clk 0:01:18]} 28. Rxa6 {[%clk 0:01:12]}  Nc5 {[%clk 0:01:01]} 29. Rc6 {[%clk 0:01:08]}  Qa7 {[%clk 0:01:00]} 30. h3 {[%clk 0:01:06]}  Nxb3 {[%clk 0:00:51]} 31. cxb3 {[%clk 0:01:05]}  h5 {[%clk 0:00:48]} 32. b4 {[%clk 0:00:51]}  Qd4 {[%clk 0:00:44]} 33. Qe3 {[%clk 0:00:37]}  Qxe3 {[%clk 0:00:25]} 34. Nxe3 {[%clk 0:00:36]}  Bxd3 {[%clk 0:00:24]} 35. Rxd6 {[%clk 0:00:35]}  Rxb4 {[%clk 0:00:25]} 36. Rd8+ {[%clk 0:00:33]}  Kh7 {[%clk 0:00:25]} 37. h4 {[%clk 0:00:32]}  Rxh4+ {[%clk 0:00:24]} 38. Kg1 {[%clk 0:00:33]}  Rd4 {[%clk 0:00:25]} 39. Re8 {[%clk 0:00:31]}  f6 {[%clk 0:00:24]} 40. Kf2 {[%clk 0:00:29]}  Kg6 {[%clk 0:00:20]} 41. Re7 {[%clk 0:00:28]}  Bb1 {[%clk 0:00:19]} 42. Ke1 {[%clk 0:00:28]}  Ba2 {[%clk 0:00:18]} 43. Rd7 {[%clk 0:00:26]}  Bb3 {[%clk 0:00:18]} 44. Ke2 {[%clk 0:00:24]}  Ba4 {[%clk 0:00:18]} 45. Rb7 {[%clk 0:00:23]}  Be8 {[%clk 0:00:17]} 46. g4 {[%clk 0:00:18]}  hxg4 {[%clk 0:00:15]} 47. fxg4 {[%clk 0:00:18]}  Bf7 {[%clk 0:00:15]} 48. Rd7 {[%clk 0:00:18]}  e4 {[%clk 0:00:14]} 49. Nf5 {[%clk 0:00:17]}  Rd3 {[%clk 0:00:14]} 50. Ne3 {[%clk 0:00:15]}  Be8 {[%clk 0:00:11]} 51. Re7 {[%clk 0:00:15]}  Bb5 {[%clk 0:00:11]} 52. Rxe4 {[%clk 0:00:15]}  Rxd5+ {[%clk 0:00:07]} 53. Kf2 {[%clk 0:00:15]}  Rd2+ {[%clk 0:00:08]} 54. Kg3 {[%clk 0:00:16]}  Kf7 {[%clk 0:00:06]} 55. Nf5 {[%clk 0:00:15]}  g6 {[%clk 0:00:05]} 56. Rd4 {[%clk 0:00:15]}  Rb2 {[%clk 0:00:04]} 57. Nd6+ {[%clk 0:00:15]}  Ke6 {[%clk 0:00:04]} 58. Nxb5 {[%clk 0:00:15]}  Rxb5 {[%clk 0:00:05]} 59. Re4+ {[%clk 0:00:15]}  Kd5 {[%clk 0:00:04]} 60. Re8 {[%clk 0:00:14]}  Rb3+ {[%clk 0:00:04]} 61. Kf2 {[%clk 0:00:14]}  g5 {[%clk 0:00:04]} 62. Re7 {[%clk 0:00:14]}  Rc3 {[%clk 0:00:04]} 63. Re8 {[%clk 0:00:14]}  Rc4 {[%clk 0:00:04]} 64. Kf3 {[%clk 0:00:14]}  Rf4+ {[%clk 0:00:04]} 65. Kg3 {[%clk 0:00:15]}  Kd4 {[%clk 0:00:05]} 66. Ra8 {[%clk 0:00:13]}  Re4 {[%clk 0:00:04]} 67. Ra4+ {[%clk 0:00:13]}  Ke3 {[%clk 0:00:04]} 68. Ra3+ {[%clk 0:00:14]}  Kd2 {[%clk 0:00:05]} 69. Ra2+ {[%clk 0:00:13]}  Kc3 {[%clk 0:00:05]} 70. Ra3+ {[%clk 0:00:13]}  Kc4 {[%clk 0:00:05]} 71. Ra6 {[%clk 0:00:13]}  Re3+ {[%clk 0:00:04]} 72. Kf2 {[%clk 0:00:13]}  Re4 {[%clk 0:00:04]} 73. Rxf6 {[%clk 0:00:12]}  Rxg4 {[%clk 0:00:05]} 74. Kf3 {[%clk 0:00:12]}  Rg1 {[%clk 0:00:04]} 75. Kf2 {[%clk 0:00:12]}  Rg4 {[%clk 0:00:04]} 76. Kf3 {[%clk 0:00:12]}  Rg1 {[%clk 0:00:05]} 77. Kf2 {[%clk 0:00:12]}  Rg4 {[%clk 0:00:05]} 1/2-1/2


[Site "https://www.chess.com"]

[Event "Titled Tuesday Blitz July 26 Late 2022"]
[White "Keller, Peter"]
[Black "Schekachikhin, Maksim"]
[WhiteFideId "1272105"]
[BlackFideId "24177830"]
[WhiteElo "2275"]
[BlackElo "2239"]
[Result "1-0"]
[Round "09"]
[TimeControl "180+1"]
[Date "2022.07.26"]
[WhiteClock "0:01:07"]
[BlackClock "0:02:24"]

1. e4 {[%clk 0:03:00]}  c5 {[%clk 0:02:58]} 2. Nf3 {[%clk 0:03:01]}  a6 {[%clk 0:02:57]} 3. c3 {[%clk 0:03:01]}  d5 {[%clk 0:02:57]} 4. exd5 {[%clk 0:03:01]}  Qxd5 {[%clk 0:02:58]} 5. d4 {[%clk 0:03:02]}  Bg4 {[%clk 0:02:57]} 6. dxc5 {[%clk 0:02:57]}  Qxd1+ {[%clk 0:02:56]} 7. Kxd1 {[%clk 0:02:58]}  Bxf3+ {[%clk 0:02:54]} 8. gxf3 {[%clk 0:02:59]}  e6 {[%clk 0:02:54]} 9. b4 {[%clk 0:02:59]}  a5 {[%clk 0:02:51]} 10. Bb5+ {[%clk 0:02:58]}  Nc6 {[%clk 0:02:51]} 11. Kc2 {[%clk 0:02:51]}  Nf6 {[%clk 0:02:49]} 12. Bb2 {[%clk 0:02:27]}  Nd5 {[%clk 0:02:47]} 13. a3 {[%clk 0:02:26]}  Be7 {[%clk 0:02:43]} 14. c4 {[%clk 0:01:55]}  Nf6 {[%clk 0:02:42]} 15. Nd2 {[%clk 0:01:45]}  O-O {[%clk 0:02:36]} 16. Bxc6 {[%clk 0:01:44]}  bxc6 {[%clk 0:02:37]} 17. Ne4 {[%clk 0:01:37]}  Nh5 {[%clk 0:02:32]} 18. Rhg1 {[%clk 0:01:22]}  Rfb8 {[%clk 0:02:30]} 19. Bc3 {[%clk 0:01:18]}  g6 {[%clk 0:02:29]} 20. Rgd1 {[%clk 0:01:16]}  Nf4 {[%clk 0:02:28]} 21. Rd7 {[%clk 0:01:15]}  Kf8 {[%clk 0:02:28]} 22. Kb3 {[%clk 0:01:08]}  Ke8 {[%clk 0:02:28]} 23. Rad1 {[%clk 0:01:07]}  axb4 {[%clk 0:02:27]} 24. axb4 {[%clk 0:01:07]}  f5 {[%clk 0:02:25]} 25. Nf6+ {[%clk 0:01:06]}  Bxf6 {[%clk 0:02:24]} 26. Bxf6 {[%clk 0:01:07]} 1-0


[Site "https://www.chess.com"]

[Event "Titled Tuesday Blitz July 26 Late 2022"]
[White "Kopczynski, Michal"]
[Black "Fishbein, Alexander"]
[WhiteFideId "1124200"]
[BlackFideId "2000377"]
[WhiteElo "2235"]
[BlackElo "2410"]
[Result "1-0"]
[Round "09"]
[TimeControl "180+1"]
[Date "2022.07.26"]
[WhiteClock "0:00:08"]
[BlackClock "0:00:01"]

1. e4 {[%clk 0:03:00]}  c5 {[%clk 0:02:56]} 2. d4 {[%clk 0:03:00]}  cxd4 {[%clk 0:02:56]} 3. c3 {[%clk 0:03:01]}  dxc3 {[%clk 0:02:55]} 4. Nxc3 {[%clk 0:03:02]}  Nc6 {[%clk 0:02:55]} 5. f4 {[%clk 0:03:02]}  e6 {[%clk 0:02:45]} 6. Nf3 {[%clk 0:03:03]}  Bb4 {[%clk 0:02:42]} 7. Bd3 {[%clk 0:03:03]}  Nf6 {[%clk 0:02:41]} 8. O-O {[%clk 0:03:02]}  O-O {[%clk 0:02:39]} 9. Kh1 {[%clk 0:03:03]}  Bxc3 {[%clk 0:02:36]} 10. bxc3 {[%clk 0:03:02]}  d5 {[%clk 0:02:36]} 11. e5 {[%clk 0:03:02]}  Ne4 {[%clk 0:02:36]} 12. Qe1 {[%clk 0:03:01]}  f5 {[%clk 0:02:31]} 13. exf6 {[%clk 0:03:02]}  Qxf6 {[%clk 0:02:17]} 14. Ba3 {[%clk 0:02:56]}  Re8 {[%clk 0:02:13]} 15. Bxe4 {[%clk 0:02:35]}  dxe4 {[%clk 0:02:12]} 16. Qxe4 {[%clk 0:02:35]}  Qxc3 {[%clk 0:02:11]} 17. Ng5 {[%clk 0:02:32]}  g6 {[%clk 0:02:04]} 18. Bd6 {[%clk 0:02:06]}  Qd4 {[%clk 0:02:03]} 19. Qxd4 {[%clk 0:01:52]}  Nxd4 {[%clk 0:02:02]} 20. Ne4 {[%clk 0:01:45]}  b5 {[%clk 0:01:16]} 21. Rac1 {[%clk 0:01:06]}  Rd8 {[%clk 0:00:50]} 22. Be7 {[%clk 0:00:43]}  Rd7 {[%clk 0:00:41]} 23. Nf6+ {[%clk 0:00:38]}  Kf7 {[%clk 0:00:41]} 24. Nxd7 {[%clk 0:00:39]}  Kxe7 {[%clk 0:00:26]} 25. Ne5 {[%clk 0:00:40]}  Nf5 {[%clk 0:00:16]} 26. Rc7+ {[%clk 0:00:35]}  Kd6 {[%clk 0:00:17]} 27. Rfc1 {[%clk 0:00:31]}  a5 {[%clk 0:00:12]} 28. Rxc8 {[%clk 0:00:26]}  Ra7 {[%clk 0:00:11]} 29. R8c6+ {[%clk 0:00:17]}  Kd5 {[%clk 0:00:11]} 30. Rc7 {[%clk 0:00:15]}  Ra6 {[%clk 0:00:10]} 31. Rxh7 {[%clk 0:00:13]}  Ke4 {[%clk 0:00:09]} 32. Nxg6 {[%clk 0:00:13]}  b4 {[%clk 0:00:09]} 33. h3 {[%clk 0:00:13]}  Rd6 {[%clk 0:00:08]} 34. h4 {[%clk 0:00:13]}  Rd2 {[%clk 0:00:08]} 35. h5 {[%clk 0:00:11]}  Rxa2 {[%clk 0:00:08]} 36. Re1+ {[%clk 0:00:10]}  Ne3 {[%clk 0:00:05]} 37. h6 {[%clk 0:00:08]}  Kd3 {[%clk 0:00:03]} 38. Rd7+ {[%clk 0:00:08]}  Ke4 {[%clk 0:00:01]} 39. h7 {[%clk 0:00:08]} 1-0


[Site "https://www.chess.com"]

[Event "Titled Tuesday Blitz July 26 Late 2022"]
[White "Korchmar, Vasiliy"]
[Black "Hafiz, Arif Abdul"]
[WhiteFideId "24131750"]
[BlackFideId "7104227"]
[WhiteElo "2370"]
[BlackElo "2198"]
[Result "0-1"]
[Round "09"]
[TimeControl "180+1"]
[Date "2022.07.26"]
[WhiteClock "0:00:06"]
[BlackClock "0:01:35"]

1. e4 {[%clk 0:03:00]}  Nc6 {[%clk 0:03:00]} 2. Nf3 {[%clk 0:02:53]}  e5 {[%clk 0:03:00]} 3. Nc3 {[%clk 0:02:53]}  Nf6 {[%clk 0:02:59]} 4. h3 {[%clk 0:02:53]}  Bb4 {[%clk 0:02:53]} 5. Nd5 {[%clk 0:02:53]}  Nxd5 {[%clk 0:02:53]} 6. exd5 {[%clk 0:02:53]}  e4 {[%clk 0:02:53]} 7. dxc6 {[%clk 0:02:49]}  exf3 {[%clk 0:02:52]} 8. Qxf3 {[%clk 0:02:37]}  Qe7+ {[%clk 0:02:51]} 9. Kd1 {[%clk 0:02:25]}  dxc6 {[%clk 0:02:52]} 10. Bc4 {[%clk 0:02:24]}  O-O {[%clk 0:02:45]} 11. Re1 {[%clk 0:02:24]}  Qc5 {[%clk 0:02:26]} 12. b3 {[%clk 0:00:50]}  Bf5 {[%clk 0:02:25]} 13. a3 {[%clk 0:00:41]}  Ba5 {[%clk 0:02:17]} 14. Bb2 {[%clk 0:00:36]}  Rad8 {[%clk 0:02:11]} 15. Re2 {[%clk 0:00:26]}  b5 {[%clk 0:01:54]} 16. b4 {[%clk 0:00:18]}  Bxc2+ {[%clk 0:01:51]} 17. Kxc2 {[%clk 0:00:12]}  Qxc4+ {[%clk 0:01:51]} 18. Bc3 {[%clk 0:00:13]}  Bb6 {[%clk 0:01:49]} 19. Re4 {[%clk 0:00:07]}  Qd5 {[%clk 0:01:46]} 20. Rg4 {[%clk 0:00:06]}  f6 {[%clk 0:01:41]} 21. Qg3 {[%clk 0:00:07]}  Rd7 {[%clk 0:01:35]} 22. Re1 {[%clk 0:00:07]}  Qf5+ {[%clk 0:01:35]} 23. Kb2 {[%clk 0:00:06]}  Bxf2 {[%clk 0:01:35]} 0-1


[Site "https://www.chess.com"]